fUSD/lending_fUSD_20250204
["ID","MTS","AMOUNT","RATE_DAILY","PERIOD"]
[351615096,1738666239979,-500.0,8.898e-05,2]
[351615098,1738666239989,-500.0,8.898e-05,2]
[351615099,1738666239999,-500.0,8.898e-05,2]
[351615101,1738666240008,-502.88614653,8.898e-05,2]
[351615103,1738666240018,-518.91398945,8.898e-05,2]
[351615105,1738666240028,-500.0,8.898e-05,2]
[351615106,1738666240038,-500.0,8.898e-05,2]
[351615107,1738666240047,-542.79466515,8.898e-05,2]
[351615108,1738666240057,-500.0,8.898e-05,2]
[351615109,1738666240066,-500.0,8.898e-05,2]
[351615110,1738666240075,-500.0,8.898e-05,2]
[351615111,1738666240085,-500.0,8.898e-05,2]
[351615112,1738666240096,-500.0,8.898e-05,2]
[351615113,1738666240106,-552.59741041,8.898e-05,2]
[351615114,1738666240116,-500.0,8.898e-05,2]
[351615115,1738666240127,-500.0,8.898e-05,2]
[351615116,1738666240136,-500.0,8.898e-05,2]
[351615117,1738666240146,-500.0,8.898e-05,2]
[351615118,1738666240156,-500.0,8.898e-05,2]
[351615119,1738666240166,-500.0,8.898e-05,2]
[351615120,1738666240178,-500.0,8.898e-05,2]
[351615121,1738666240188,-1036.97,8.898e-05,2]
[351615122,1738666240198,-500.0,8.898e-05,2]
[351615123,1738666240208,-500.0,8.898e-05,2]
[351615124,1738666240217,-500.0,8.898e-05,2]
[351615125,1738666240226,-500.0,8.898e-05,2]
[351615126,1738666240236,-500.0,8.898e-05,2]
[351615127,1738666240246,-811.88,8.898e-05,2]
[351615128,1738666240255,-1154.75,8.898e-05,2]
[351615129,1738666240265,-500.0,8.898e-05,2]
[351615130,1738666240275,-511.43,8.898e-05,2]
[351615131,1738666240284,-500.0,8.898e-05,2]
[351615132,1738666240294,-500.0,8.898e-05,2]
[351615133,1738666240303,-500.0,8.898e-05,2]
[351615134,1738666240312,-500.0,8.898e-05,2]
[351615135,1738666240322,-765.14,8.898e-05,2]
[351615136,1738666240332,-500.0,8.898e-05,2]
[351615137,1738666240342,-1291.54,8.898e-05,2]
[351615138,1738666240351,-507.29752654,8.898e-05,2]
[351615139,1738666240361,-1554.52,8.898e-05,2]
[351615140,1738666240371,-321.25295253,8.898e-05,2]
[351615141,1738666240391,-178.74704747,8.898e-05,2]
[351615142,1738666240403,-500.0,8.898e-05,2]
[351615143,1738666240412,-1036.67,8.898e-05,2]
[351615144,1738666240422,-500.0,8.898e-05,2]
[351615145,1738666240431,-500.0,8.898e-05,2]
[351615146,1738666240440,-500.0,8.898e-05,2]
[351615147,1738666240451,-500.0,8.898e-05,2]
[351615148,1738666240461,-500.0,8.898e-05,2]
[351615149,1738666240470,-500.0,8.898e-05,2]
[351615150,1738666240480,-500.0,8.898e-05,2]
[351615151,1738666240490,-500.0,8.898e-05,2]
[351615152,1738666240500,-1160.07,8.898e-05,2]
[351615153,1738666240509,-500.0,8.898e-05,2]
[351615154,1738666240519,-877.39,8.898e-05,2]
[351615155,1738666240528,-500.0,8.898e-05,2]
[351615156,1738666240538,-1140.04,8.898e-05,2]
[351615157,1738666240547,-1693.45,8.898e-05,2]
[351615158,1738666240557,-504.13696797,8.898e-05,2]
[351615159,1738666240567,-524.31263148,8.898e-05,2]
[351615160,1738666240576,-500.0,8.898e-05,2]
[351615161,1738666240586,-500.0,8.898e-05,2]
[351615162,1738666240596,-500.0,8.898e-05,2]
[351615163,1738666240606,-511.02,8.898e-05,2]
[351615164,1738666240616,-500.0,8.898e-05,2]
[351615165,1738666240627,-500.0,8.898e-05,2]
[351615166,1738666240637,-635.7,8.898e-05,2]
[351615167,1738666240646,-890.36,8.898e-05,2]
[351615168,1738666240657,-500.0,8.898e-05,2]
[351615169,1738666240667,-918.28,8.898e-05,2]
[351615170,1738666240677,-1021.01,8.898e-05,2]
[351615171,1738666240687,-500.0,8.898e-05,2]
[351615172,1738666240697,-500.0,8.898e-05,2]
[351615173,1738666240706,-500.0,8.898e-05,2]
[351615174,1738666240716,-500.0,8.898e-05,2]
[351615175,1738666240726,-887.28,8.898e-05,2]
[351615176,1738666240736,-694.48,8.898e-05,2]
[351615177,1738666240746,-883.46,8.898e-05,2]
[351615178,1738666240755,-500.0,8.898e-05,2]
[351615179,1738666240765,-500.0,8.898e-05,2]
[351615180,1738666240774,-944.67,8.898e-05,2]
[351615181,1738666240784,-501.9530557,8.898e-05,2]
[351615182,1738666240793,-500.0,8.898e-05,2]
[351615183,1738666240803,-500.0,8.898e-05,2]
[351615184,1738666240818,-1539.06,8.898e-05,2]
[351615185,1738666240829,-1293.87,8.898e-05,2]
[351615186,1738666240839,-500.0,8.898e-05,2]
[351615187,1738666240848,-500.0,8.898e-05,2]
[351615188,1738666240857,-500.0,8.898e-05,2]
[351615189,1738666240867,-500.0,8.898e-05,2]
[351615190,1738666240877,-500.0,8.898e-05,2]
[351615191,1738666240887,-1026.96,8.898e-05,2]
[351615192,1738666240897,-500.0,8.898e-05,2]
[351615193,1738666240909,-1448.18,8.898e-05,2]
[351615194,1738666240919,-1933.36,8.898e-05,2]
[351615195,1738666240928,-500.0,8.898e-05,2]
[351615196,1738666240938,-1108.43,8.898e-05,2]
[351615197,1738666240947,-500.0,8.898e-05,2]
[351615198,1738666240957,-500.0,8.898e-05,2]
[351615199,1738666240967,-501.54215268,8.898e-05,2]
[351615200,1738666240976,-500.0,8.898e-05,2]
[351615201,1738666240986,-500.0,8.898e-05,2]
[351615202,1738666240996,-1405.97,8.898e-05,2]
[351615203,1738666241007,-1014.38,8.898e-05,2]
[351615204,1738666241017,-500.0,8.898e-05,2]
[351615205,1738666241027,-500.0,8.898e-05,2]
[351615206,1738666241036,-1538.12,8.898e-05,2]
[351615207,1738666241046,-500.0,8.898e-05,2]
[351615208,1738666241056,-502.13537187,8.898e-05,2]
[351615209,1738666241066,-763.32,8.898e-05,2]
[351615210,1738666241077,-2844.58,8.898e-05,2]
[351615211,1738666241091,-500.0,8.898e-05,2]
[351615212,1738666241101,-762.83,8.898e-05,2]
[351615213,1738666241112,-681.6,8.898e-05,2]
[351615214,1738666241122,-500.0,8.898e-05,2]
[351615215,1738666241132,-753.58,8.898e-05,2]
[351615216,1738666241141,-500.0,8.898e-05,2]
[351615217,1738666241152,-500.0,8.898e-05,2]
[351615218,1738666241162,-1449.41,8.898e-05,2]
[351615219,1738666241171,-1972.38,8.898e-05,2]
[351615220,1738666241181,-501.86322651,8.898e-05,2]
[351615221,1738666241191,-500.0,8.898e-05,2]
[351615222,1738666241200,-2349.51,8.898e-05,2]
[351615223,1738666241210,-2434.55,8.898e-05,2]
[351615224,1738666241219,-502.66191215,8.898e-05,2]
[351615225,1738666241229,-500.0,8.898e-05,2]
[351615226,1738666241238,-1491.33,8.898e-05,2]
[351615227,1738666241247,-501.86650773,8.898e-05,2]
[351615228,1738666241257,-537.48,8.898e-05,2]
[351615229,1738666241266,-646.53,8.898e-05,2]
[351615230,1738666241275,-2183.22,8.898e-05,2]
[351615231,1738666241285,-500.0,8.898e-05,2]
[351615232,1738666241294,-500.0,8.898e-05,2]
[351615233,1738666241303,-2533.64,8.898e-05,2]
[351615234,1738666241313,-500.0,8.898e-05,2]
[351615235,1738666241322,-500.6705626,8.898e-05,2]
[351615236,1738666241331,-502.16590409,8.898e-05,2]
[351615237,1738666241341,-1141.92,8.898e-05,2]
[351615238,1738666241350,-931.86,8.898e-05,2]
[351615239,1738666241360,-500.0,8.898e-05,2]
[351615240,1738666241369,-507.7,8.898e-05,2]
[351615241,1738666241378,-2142.56,8.898e-05,2]
[351615242,1738666241388,-500.0,8.898e-05,2]
[351615243,1738666241397,-819.59,8.898e-05,2]
[351615244,1738666241409,-500.0,8.898e-05,2]
[351615245,1738666241418,-807.06,8.898e-05,2]
[351615246,1738666241427,-963.79,8.898e-05,2]
[351615247,1738666241437,-1496.82,8.898e-05,2]
[351615248,1738666241446,-1012.66,8.898e-05,2]
[351615249,1738666241455,-500.0,8.898e-05,2]
[351615250,1738666241464,-500.0,8.898e-05,2]
[351615251,1738666241473,-1580.21,8.898e-05,2]
[351615252,1738666241483,-500.0,8.898e-05,2]
[351615253,1738666241494,-502.04924015,8.898e-05,2]
[351615254,1738666241504,-1093.78,8.898e-05,2]
[351615255,1738666241513,-726.52,8.898e-05,2]
[351615256,1738666241522,-568.23,8.898e-05,2]
[351615257,1738666241532,-500.0,8.898e-05,2]
[351615258,1738666241542,-500.0,8.898e-05,2]
[351615259,1738666241552,-500.0,8.898e-05,2]
[351615260,1738666241562,-3113.89,8.898e-05,2]
[351615261,1738666241572,-657.88,8.898e-05,2]
[351615262,1738666241582,-2079.82,8.898e-05,2]
[351615263,1738666241591,-559.25,8.898e-05,2]
[351615264,1738666241600,-1366.26,8.898e-05,2]
[351615265,1738666241610,-545.71,8.898e-05,2]
[351615266,1738666241619,-1145.74,8.898e-05,2]
[351615267,1738666241629,-1661.25,8.898e-05,2]
[351615268,1738666241639,-500.0,8.898e-05,2]
[351615269,1738666241648,-500.0,8.898e-05,2]
[351615270,1738666241660,-500.0,8.898e-05,2]
[351615271,1738666241670,-500.0,8.898e-05,2]
[351615272,1738666241680,-500.0,8.898e-05,2]
[351615273,1738666241690,-1267.42,8.898e-05,2]
[351615274,1738666241700,-1596.56,8.898e-05,2]
[351615275,1738666241710,-1248.59,8.898e-05,2]
[351615276,1738666241720,-1570.67,8.898e-05,2]
[351615277,1738666241730,-500.0,8.898e-05,2]
[351615278,1738666241740,-500.0,8.898e-05,2]
[351615279,1738666241750,-1319.75,8.898e-05,2]
[351615280,1738666241759,-377.3516843,8.898e-05,2]
[351615281,1738666241770,-1179.66,8.898e-05,2]
[351615282,1738666241782,-2198.65,8.898e-05,2]
[351615283,1738666241791,-500.0,8.898e-05,2]
[351615284,1738666241800,-992.99,8.898e-05,2]
[351615285,1738666241810,-1625.3,8.898e-05,2]
[351615286,1738666241819,-1582.81,8.898e-05,2]
[351615287,1738666241829,-1213.52,8.898e-05,2]
[351615288,1738666241838,-500.0,8.898e-05,2]
[351615289,1738666241847,-500.0,8.898e-05,2]
[351615290,1738666241857,-1103.89,8.898e-05,2]
[351615291,1738666241867,-500.0,8.898e-05,2]
[351615292,1738666241877,-1286.49,8.898e-05,2]
[351615293,1738666241887,-660.98,8.898e-05,2]
[351615294,1738666241897,-923.7,8.898e-05,2]
[351615295,1738666241908,-500.0,8.898e-05,2]
[351615296,1738666241918,-905.0,8.898e-05,2]
[351615297,1738666241927,-559.28,8.898e-05,2]
[351615298,1738666241936,-1310.3,8.898e-05,2]
[351615299,1738666241945,-500.0,8.898e-05,2]
[351615300,1738666241954,-636.31,8.898e-05,2]
[351615301,1738666241964,-500.0,8.898e-05,2]
[351615302,1738666241974,-500.0,8.898e-05,2]
[351615303,1738666241984,-500.0,8.898e-05,2]
[351615304,1738666241993,-500.0,8.898e-05,2]
[351615305,1738666242003,-500.0,8.898e-05,2]
[351615306,1738666242013,-542.77,8.898e-05,2]
[351615307,1738666242023,-520.0,8.898e-05,2]
[351615308,1738666242033,-1706.28,8.898e-05,2]
[351615309,1738666242042,-1060.8,8.898e-05,2]
[351615310,1738666242052,-1066.92,8.898e-05,2]
[351615311,1738666242061,-500.0,8.898e-05,2]
[351615312,1738666242070,-1248.82,8.898e-05,2]
[351615313,1738666242081,-500.0,8.898e-05,2]
[351615314,1738666242091,-716.2,8.898e-05,2]
[351615315,1738666242103,-500.0,8.898e-05,2]
[351615316,1738666242112,-1020.63,8.898e-05,2]
[351615317,1738666242122,-778.52,8.898e-05,2]
[351615318,1738666242131,-1782.36,8.898e-05,2]
[351615319,1738666242142,-919.14,8.898e-05,2]
[351615320,1738666242153,-500.0,8.898e-05,2]
[351615321,1738666242165,-500.0,8.898e-05,2]
[351615322,1738666242177,-881.44,8.898e-05,2]
[351615323,1738666242186,-500.0,8.898e-05,2]
[351615324,1738666242195,-743.73,8.898e-05,2]
[351615325,1738666242204,-1474.07,8.898e-05,2]
[351615326,1738666242214,-500.0,8.898e-05,2]
[351615327,1738666242223,-843.35,8.898e-05,2]
[351615328,1738666242233,-500.0,8.899e-05,2]
[351615329,1738666242242,-500.0,8.899e-05,2]
[351615330,1738666242252,-504.14922737,8.899e-05,2]
[351615331,1738666242262,-500.0,8.899e-05,2]
[351615332,1738666242271,-500.0,8.899e-05,2]
[351615333,1738666242281,-500.0,8.899e-05,2]
[351615334,1738666242290,-500.0,8.899e-05,2]
[351615335,1738666242299,-500.0,8.899e-05,2]
[351615336,1738666242309,-500.0,8.899e-05,2]
[351615338,1738666242319,-500.0,8.899e-05,2]
[351615340,1738666242328,-500.0,8.899e-05,2]
[351615342,1738666242337,-573.49,8.899e-05,2]
[351615344,1738666242347,-826.86,8.899e-05,2]
[351615345,1738666242357,-500.0,8.899e-05,2]
[351615346,1738666242367,-500.0,8.899e-05,2]
[351615347,1738666242377,-500.0,8.899e-05,2]
[351615348,1738666242387,-500.0,8.899e-05,2]
[351615349,1738666242396,-500.0,8.899e-05,2]
[351615350,1738666242408,-500.0,8.899e-05,2]
[351615351,1738666242418,-500.0,8.899e-05,2]
[351615352,1738666242427,-500.0,8.899e-05,2]
[351615353,1738666242437,-500.0,8.899e-05,2]
[351615354,1738666242446,-500.0,8.899e-05,2]
[351615355,1738666242455,-500.0,8.899e-05,2]
[351615356,1738666242465,-225.42328462,8.899e-05,2]
[351615357,1738666242474,-500.0,8.899e-05,2]
[351615358,1738666242485,-500.0,8.899e-05,2]
[351615359,1738666242495,-582.91,8.899e-05,2]
[351615360,1738666242504,-906.73,8.899e-05,2]
[351615361,1738666242514,-500.0,8.899e-05,2]
[351615363,1738666242528,-500.0,8.899e-05,2]
[351615364,1738666242537,-566.69,8.899e-05,2]
[351615365,1738666242547,-500.0,8.899e-05,2]
[351615366,1738666242558,-520.23,8.899e-05,2]
[351615367,1738666242568,-627.36,8.899e-05,2]
[351615368,1738666242578,-500.0,8.899e-05,2]
[351615369,1738666242588,-500.0,8.899e-05,2]
[351615370,1738666242598,-500.0,8.899e-05,2]
[351615371,1738666242610,-521.41,8.899e-05,2]
[351615372,1738666242620,-500.0,8.899e-05,2]
[351615373,1738666242630,-500.0,8.899e-05,2]
[351615374,1738666242639,-524.37246925,8.899e-05,2]
[351615375,1738666242649,-536.62,8.899e-05,2]
[351615376,1738666242661,-500.0,8.899e-05,2]
[351615377,1738666242672,-500.0,8.899e-05,2]
[351615378,1738666242682,-500.0,8.899e-05,2]
[351615379,1738666242692,-593.34,8.899e-05,2]
[351615380,1738666242702,-500.0,8.899e-05,2]
[351615381,1738666242712,-500.0,8.899e-05,2]
[351615382,1738666242722,-500.0,8.899e-05,2]
[351615383,1738666242732,-191.39503454,8.899e-05,2]
[351615384,1738666242742,-500.0,8.899e-05,2]
[351615385,1738666242753,-500.0,8.899e-05,2]
[351615386,1738666242763,-763.48,8.899e-05,2]
[351615387,1738666242772,-503.77632099,8.899e-05,2]
[351615388,1738666242782,-500.0,8.899e-05,2]
[351615389,1738666242792,-500.0,8.899e-05,2]
[351615390,1738666242801,-762.35,8.899e-05,2]
[351615391,1738666242811,-500.0,8.899e-05,2]
[351615392,1738666242822,-500.0,8.899e-05,2]
[351615393,1738666242832,-500.0,8.899e-05,2]
[351615394,1738666242842,-532.38,8.899e-05,2]
[351615395,1738666242852,-500.0,8.899e-05,2]
[351615396,1738666242861,-508.5551765,8.899e-05,2]
[351615397,1738666242871,-500.0,8.899e-05,2]
[351615398,1738666242880,-684.17,8.899e-05,2]
[351615399,1738666242890,-500.0,8.899e-05,2]
[351615400,1738666242900,-510.91,8.899e-05,2]
[351615402,1738666242911,-665.46,8.899e-05,2]
[351615404,1738666242920,-516.45,8.899e-05,2]
[351615406,1738666242929,-500.0,8.899e-05,2]
[351615408,1738666242938,-500.0,8.899e-05,2]
[351615410,1738666242948,-500.0,8.899e-05,2]
[351615412,1738666242957,-602.27,8.899e-05,2]
[351615414,1738666242967,-500.0,8.899e-05,2]
[351615416,1738666242977,-886.01,8.899e-05,2]
[351615418,1738666242987,-852.86,8.899e-05,2]
[351615420,1738666242996,-447.30822013,8.899e-05,2]
[351615435,1738666243668,-52.69177987,8.899e-05,2]
[351615436,1738666243678,-500.0,8.899e-05,2]
[351615437,1738666243688,-500.0,8.899e-05,2]
[351615438,1738666243699,-1183.56,8.899e-05,2]
[351615439,1738666243709,-500.0,8.899e-05,2]
[351615440,1738666243719,-500.0,8.899e-05,2]
[351615441,1738666243728,-500.0,8.899e-05,2]
[351615442,1738666243738,-719.44,8.899e-05,2]
[351615443,1738666243748,-500.0,8.899e-05,2]
[351615444,1738666243757,-500.0,8.899e-05,2]
[351615445,1738666243767,-395.57798053,8.899e-05,2]
[351615446,1738666243776,-738.7,8.899e-05,2]
[351615447,1738666243786,-1012.94,8.899e-05,2]
[351615448,1738666243795,-500.0,8.899e-05,2]
[351615449,1738666243805,-506.13053744,8.899e-05,2]
[351615450,1738666243814,-500.0,8.899e-05,2]
[351615451,1738666243824,-500.0,8.899e-05,2]
[351615452,1738666243834,-500.0,8.899e-05,2]
[351615453,1738666243845,-631.63,8.899e-05,2]
[351615454,1738666243855,-803.76,8.899e-05,2]
[351615455,1738666243864,-500.0,8.899e-05,2]
[351615456,1738666243875,-673.09,8.899e-05,2]
[351615457,1738666243884,-500.0,8.899e-05,2]
[351615458,1738666243894,-844.23,8.899e-05,2]
[351615459,1738666243904,-500.0,8.899e-05,2]
[351615460,1738666243913,-500.0,8.899e-05,2]
[351615461,1738666243923,-533.38,8.899e-05,2]
[351615462,1738666243933,-500.0,8.899e-05,2]
[351615463,1738666243942,-236.11955405,8.899e-05,2]
[351615464,1738666243952,-500.0,8.899e-05,2]
[351615465,1738666243962,-500.0,8.899e-05,2]
[351615466,1738666243972,-500.0,8.899e-05,2]
[351615467,1738666243981,-578.55,8.899e-05,2]
[351615468,1738666243992,-511.51,8.899e-05,2]
[351615469,1738666244002,-500.0,8.899e-05,2]
[351615470,1738666244011,-500.0,8.899e-05,2]
[351615471,1738666244021,-611.93,8.899e-05,2]
[351615472,1738666244031,-1116.38,8.899e-05,2]
[351615473,1738666244040,-639.02,8.899e-05,2]
[351615474,1738666244050,-500.0,8.899e-05,2]
[351615475,1738666244060,-500.0,8.899e-05,2]
[351615476,1738666244070,-819.52,8.899e-05,2]
[351615477,1738666244080,-500.0,8.899e-05,2]
[351615478,1738666244091,-500.0,8.899e-05,2]
[351615479,1738666244102,-500.0,8.899e-05,2]
[351615480,1738666244113,-683.87,8.899e-05,2]
[351615481,1738666244123,-500.0,8.899e-05,2]
[351615482,1738666244133,-503.52,8.899e-05,2]
[351615483,1738666244143,-500.0,8.899e-05,2]
[351615484,1738666244153,-500.0,8.899e-05,2]
[351615485,1738666244166,-500.0,8.899e-05,2]
[351615486,1738666244178,-500.0,8.899e-05,2]
[351615487,1738666244188,-735.16,8.899e-05,2]
[351615488,1738666244198,-500.0,8.899e-05,2]
[351615489,1738666244208,-500.0,8.899e-05,2]
[351615490,1738666244218,-500.0,8.899e-05,2]
[351615491,1738666244228,-997.44,8.899e-05,2]
[351615492,1738666244237,-500.0,8.899e-05,2]
[351615493,1738666244247,-500.0,8.899e-05,2]
[351615494,1738666244256,-500.0,8.899e-05,2]
[351615495,1738666244266,-500.0,8.899e-05,2]
[351615496,1738666244275,-500.0,8.899e-05,2]
[351615497,1738666244284,-632.22,8.899e-05,2]
[351615498,1738666244294,-616.82,8.899e-05,2]
[351615499,1738666244303,-500.0,8.899e-05,2]
[351615500,1738666244313,-500.0,8.899e-05,2]
[351615501,1738666244323,-500.0,8.899e-05,2]
[351615502,1738666244334,-500.0,8.899e-05,2]
[351615503,1738666244344,-500.0,8.899e-05,2]
[351615504,1738666244354,-648.81,8.899e-05,2]
[351615505,1738666244364,-500.0,8.899e-05,2]
[351615506,1738666244374,-500.0,8.899e-05,2]
[351615507,1738666244383,-915.19,8.899e-05,2]
[351615508,1738666244393,-2371.2,8.899e-05,2]
[351615509,1738666244404,-838.62,8.899e-05,2]
[351615510,1738666244413,-500.0,8.899e-05,2]
[351615511,1738666244423,-272.13431531,8.899e-05,2]
[351615512,1738666244436,-1314.93568469,8.899e-05,2]
[351615513,1738666244446,-500.0,8.899e-05,2]
[351615514,1738666244456,-500.0,8.899e-05,2]
[351615515,1738666244466,-1816.92,8.899e-05,2]
[351615516,1738666244475,-500.0,8.899e-05,2]
[351615517,1738666244485,-500.0,8.899e-05,2]
[351615518,1738666244495,-500.0,8.899e-05,2]
[351615519,1738666244506,-500.0,8.899e-05,2]
[351615520,1738666244515,-613.70917153,8.899e-05,2]
[351615521,1738666244527,-101.60082847,8.899e-05,2]
[351615522,1738666244537,-429.0917699,8.899e-05,2]
[351615523,1738666244571,-270.00005,8.899e-05,2]
[351615524,1738666244583,-789.4781801,8.899e-05,2]
[351615525,1738666244592,-500.0,8.899e-05,2]
[351615526,1738666244602,-263.30621072,8.899e-05,2]
[351615527,1738666244611,-2550.15,8.899e-05,2]
[351615528,1738666244620,-530.01,8.899e-05,2]
[351615529,1738666244630,-500.0,8.899e-05,2]
[351615530,1738666244639,-537.38597064,8.899e-05,2]
[351615531,1738666244649,-500.0,8.899e-05,2]
[351615532,1738666244660,-500.0,8.899e-05,2]
[351615533,1738666244670,-500.0,8.899e-05,2]
[351615534,1738666244679,-1658.68,8.899e-05,2]
[351615535,1738666244689,-1030.96,8.899e-05,2]
[351615536,1738666244699,-18.65731639,8.899e-05,2]
[351615537,1738666244711,-481.34268361,8.899e-05,2]
[351615538,1738666244721,-578.27,8.899e-05,2]
[351615539,1738666244730,-500.0,8.899e-05,2]
[351615540,1738666244740,-517.33,8.899e-05,2]
[351615541,1738666244749,-500.0,8.899e-05,2]
[351615542,1738666244759,-1386.93,8.899e-05,2]
[351615543,1738666244768,-975.74,8.899e-05,2]
[351615544,1738666244778,-740.72,8.899e-05,2]
[351615545,1738666244789,-500.0,8.899e-05,2]
[351615546,1738666244799,-1222.2,8.899e-05,2]
[351615547,1738666244810,-500.0,8.899e-05,2]
[351615548,1738666244820,-500.0,8.899e-05,2]
[351615549,1738666244830,-1336.79,8.899e-05,2]
[351615550,1738666244840,-488.36296413,8.899e-05,2]
[351615551,1738666244853,-11.63703587,8.899e-05,2]
[351615552,1738666244863,-526.32,8.899e-05,2]
[351615553,1738666244873,-516.01,8.899e-05,2]
[351615554,1738666244883,-1353.18387413,8.899e-05,2]
[351615555,1738666244896,-11.84612587,8.899e-05,2]
[351615556,1738666244907,-988.76691413,8.899e-05,2]
[351615557,1738666244919,-98.66308587,8.899e-05,2]
[351615558,1738666244929,-500.0,8.899e-05,2]
[351615559,1738666244940,-68.71534851,8.899e-05,2]
[351615560,1738666244951,-1492.14465149,8.899e-05,2]
[351615561,1738666244960,-406.24534851,8.899e-05,2]
[351615562,1738666244972,-229.25465149,8.899e-05,2]
[351615563,1738666244982,-500.0,8.899e-05,2]
[351615564,1738666244993,-658.5151145,8.899e-05,2]
[351615565,1738666245005,-276.21679786,8.899e-05,2]
[351615566,1738666245021,-536.80808764,8.899e-05,2]
[351615567,1738666245032,-500.0,8.899e-05,2]
[351615568,1738666245042,-500.0,8.899e-05,2]
[351615569,1738666245051,-1627.62,8.899e-05,2]
[351615570,1738666245062,-589.4,8.899e-05,2]
[351615571,1738666245072,-500.0,8.899e-05,2]
[351615572,1738666245083,-500.0,8.899e-05,2]
[351615573,1738666245097,-500.0,8.899e-05,2]
[351615574,1738666245107,-500.0,8.899e-05,2]
[351615575,1738666245116,-500.0,8.899e-05,2]
[351615576,1738666245126,-500.0,8.899e-05,2]
[351615577,1738666245136,-1341.25,8.899e-05,2]
[351615578,1738666245145,-500.0,8.899e-05,2]
[351615579,1738666245157,-611.74,8.899e-05,2]
[351615580,1738666245167,-1635.21,8.899e-05,2]
[351615581,1738666245178,-1060.11,8.899e-05,2]
[351615582,1738666245189,-500.0,8.899e-05,2]
[351615583,1738666245199,-761.58,8.899e-05,2]
[351615584,1738666245209,-500.0,8.899e-05,2]
[351615585,1738666245219,-500.0,8.899e-05,2]
[351615586,1738666245229,-563.5,8.899e-05,2]
[351615587,1738666245239,-500.0,8.899e-05,2]
[351615588,1738666245248,-500.0,8.899e-05,2]
[351615589,1738666245258,-500.0,8.899e-05,2]
[351615590,1738666245268,-500.0,8.899e-05,2]
[351615591,1738666245277,-665.51,8.899e-05,2]
[351615592,1738666245286,-547.43,8.899e-05,2]
[351615594,1738666245296,-500.0,8.899e-05,2]
[351615595,1738666245306,-529.84,8.9e-05,2]
[351615596,1738666245315,-629.17,8.9e-05,2]
[351615597,1738666245324,-500.0,8.9e-05,2]
[351615598,1738666245334,-648.55,8.9e-05,2]
[351615599,1738666245343,-987.7,8.9e-05,2]
[351615600,1738666245353,-730.04,8.9e-05,2]
[351615601,1738666245363,-1018.61,8.9e-05,2]
[351615602,1738666245373,-693.01,8.9e-05,2]
[351615603,1738666245383,-953.01,8.9e-05,2]
[351615604,1738666245394,-500.0,8.9e-05,2]
[351615605,1738666245404,-659.28,8.9e-05,2]
[351615606,1738666245418,-611.5,8.9e-05,2]
[351615607,1738666245428,-713.86,8.9e-05,2]
[351615608,1738666245438,-500.0,8.9e-05,2]
[351615609,1738666245448,-797.65,8.9e-05,2]
[351615610,1738666245457,-500.0,8.9e-05,2]
[351615611,1738666245468,-620.55,8.9e-05,2]
[351615614,1738666245554,-500.0,8.9e-05,2]
[351615615,1738666245565,-893.34,8.9e-05,2]
[351615616,1738666245575,-500.0,8.9e-05,2]
[351615617,1738666245585,-500.0,8.9e-05,2]
[351615618,1738666245595,-646.5,8.9e-05,2]
[351615619,1738666245605,-500.0,8.9e-05,2]
[351615620,1738666245615,-900.0,8.9e-05,3]
[351615621,1738666245624,-500.0,8.902e-05,2]
[351615622,1738666245634,-500.0,8.902e-05,2]
[351615623,1738666245643,-500.0,8.902e-05,2]
[351615624,1738666245654,-1272.0,8.914e-05,2]
[351615625,1738666245665,-2023.0,8.914e-05,2]
[351615626,1738666245674,-638.0,8.914e-05,2]
[351615627,1738666245684,-568.0,8.914e-05,2]
[351615628,1738666245693,-1826.0,8.914e-05,2]
[351615629,1738666245703,-2953.0,8.914e-05,2]
[351615630,1738666245713,-783.0,8.914e-05,2]
[351615631,1738666245722,-907.0,8.914e-05,2]